[Event "NOR-ch Youth 2019"]
[Site "Skien"]
[Date "2019.11.08"]
[Round "1.5"]
[White "Unhjem, Bjorn Robert Lovoll"]
[Black "Lindalen, Daniel"]
[Result "1-0"]
[ECO "E18"]
[WhiteElo "1942"]
[BlackElo "1472"]
[Annotator "NA RC"]
[PlyCount "59"]
[EventDate "2019.11.08"]
[EventType "swiss"]
[EventCountry "NOR"]
[SourceTitle "playchess.com"]
[Source "ChessBase"]
[SourceQuality "1"]
[TimeControl "2400+10"]

1. Nf3 {[%emt 0:00:00]} Nf6 {[%emt 0:00:00]} 2. g3 {[%emt 0:00:00]} d5 {[%emt 0:00:03]} 3. Bg2 {[%emt 0:00:00]} e6 {[%emt 0:00:14]} 4. d4 {[%emt 0:00:08]} Be7 {[%emt 0:00:42]} 5. O-O {[%emt 0:00:10]} O-O {[%emt 0:00:06]} 6. c4 {[%emt 0:00:12]} Nbd7 {[%emt 0:00:54]} 7. Nc3 {[%emt 0:00:43]} b6 {[%emt 0:02:28]} 8. cxd5 {[%emt 0:01:20]} Nxd5 {[%emt 0:01:01]} 9. e4 {[%emt 0:01:19]} Nxc3 {[%emt 0:00:55]} 10. bxc3 {[%emt 0:00:02]} Bb7 {[%emt 0:01:20]} 11. Qc2 {[%emt 0:00:17]} c5 {[%emt 0:00:35] E18: Queen's Indian: Old Main Line (4 g3 Bb7 5 Bg2 Be7 6 0-0 0-0 7 Nc3)} 12. Bf4 {[%emt 0:01:47]} (12. Qe2 cxd4 13. cxd4 Nf6 14. e5 Nd5 15. h4 h6 16. Bd2 Rc8 17. Rfc1 Qd7 18. Nh2 Qa4 19. Be3 {0-1 (43) Le,Q (2583)-Kravtsiv,M (2549) Beijing 2008}) 12... cxd4 {[%emt 0:01:49]} 13. cxd4 {[%emt 0:00:03]} Nf6 $146 {[%emt 0:01:08]} ({Predecessor:} 13... Rc8 14. Qb1 g5 15. Be3 g4 16. Nd2 {1-0 (27) Golcman,E (2221)-Serakova,T (1661) Marianske Lazne 2016}) 14. Rfe1 {[%emt 0:00:52]} Qd7 {[%emt 0:01:59]} 15. Rad1 {[%emt 0:03:05]} Rac8 {[%emt 0:01:27]} 16. Qd3 {[%emt 0:00:02]} Rfd8 {[%emt 0:00:49]} 17. h4 {[%emt 0:04:53]} Qa4 {[%emt 0:03:59]} 18. Bg5 {[%emt 0:00:04]} Rc2 $2 {[%emt 0:02:14]} ({Inferior is} 18... Qxa2 19. Ra1 $16) ({Black should try} 18... Bb4 $17 19. Nd2 Rc3) 19. e5 {[%emt 0:00:11]} Nd5 {[%emt 0:00:39]} 20. Bxe7 {[%emt 0:00:03]} Nxe7 {[%emt 0:00:12]} 21. Ng5 $1 {[%emt 0:00:02] Discovered Attack} Bxg2 {[%emt 0:06:00]} 22. Qxh7+ {[%emt 0:00:04]} ({Weaker is} 22. Kxg2 Nf5 $17) 22... Kf8 {[%emt 0:00:04]} 23. Kxg2 {[%emt 0:00:16]} Nf5 {[%emt 0:03:32]} 24. Qh5 {[%emt 0:04:02]} Qc6+ $2 {[%emt 0:01:46]} (24... Nh6 25. Qf3 Ke7) 25. Kg1 $2 {[%emt 0:00:32]} (25. d5 {[%csl Gg5][%cal Rh5f7]} Qb7 26. Qh8+ Ke7 $14) 25... Qb7 $2 {[%emt 0:01:30] [#]} (25... Nh6 26. Re4 Kg8) 26. d5 $18 {[%emt 0:01:32]} g6 {[%emt 0:03:57]} 27. Qh8+ {[%emt 0:00:02]} Ke7 {[%emt 0:00:04]} 28. Qf6+ {[%emt 0:00:03]} Ke8 {[%emt 0:00:29]} 29. dxe6 {[%emt 0:00:07]} Rxd1 {[%emt 0:01:09]} 30. exf7+ {[%emt 0:01:03]} 1-0

[Event "NOR-ch Youth 2019"]
[Site "Skien"]
[Date "2019.11.08"]
[Round "1.6"]
[White "Rosendahl, Guttorm"]
[Black "Holand, Per Fredrik"]
[Result "0-1"]
[ECO "E30"]
[WhiteElo "1436"]
[BlackElo "1927"]
[Annotator "NA RC"]
[PlyCount "58"]
[EventDate "2019.11.08"]
[EventType "swiss"]
[EventCountry "NOR"]
[SourceTitle "playchess.com"]
[Source "ChessBase"]
[SourceQuality "1"]
[TimeControl "2400+10"]

1. d4 {[%emt 0:00:00]} Nf6 {[%emt 0:00:00]} 2. c4 {[%emt 0:00:00]} e6 {[%emt 0:00:00]} 3. Bg5 {[%emt 0:00:03]} h6 {[%emt 0:01:29]} 4. Bh4 {[%emt 0:00:06]} Bb4+ {[%emt 0:00:19]} 5. Nc3 {[%emt 0:00:35]} c5 {[%emt 0:00:20]} 6. a3 {[%emt 0:00:45]} Bxc3+ {[%emt 0:01:01]} 7. bxc3 {[%emt 0:00:04]} Qa5 {[%emt 0:01:25] E30: Nimzo-Indian: Leningrad Variation} 8. Qc2 {[%emt 0:01:55]} (8. Qd3 Ne4 9. Rc1 Qxa3 10. Kd1 d5 11. f3 Nd6 12. cxd5 exd5 13. Qe3+ Be6 14. Qe5 Nf5 15. Bf2 {0-1 (24) Nichlos,A (1628)-David,A (2534) Agios Ioannis 2019}) 8... cxd4 {[%emt 0:00:25]} 9. Nf3 $146 {[%emt 0:02:50]} ({Predecessor:} 9. Bxf6 gxf6 10. e4 dxe3 11. fxe3 b6 12. Nf3 Bb7 13. Be2 Na6 14. O-O Rg8 15. g3 f5 16. Rfd1 Nc5 17. Ne5 Ne4 18. Bf3 Qxe5 {0-1 (18) Secondi,A (1596)-Czerniawski,A ICCF email 2013}) 9... Qxc3+ {[%emt 0:00:41]} 10. Qxc3 {[%emt 0:00:06]} dxc3 {[%emt 0:00:05]} 11. Bxf6 {[%emt 0:00:50]} gxf6 {[%emt 0:00:06]} 12. Rc1 {[%emt 0:00:13]} Nc6 {[%emt 0:00:14]} 13. e3 {[%emt 0:00:39]} b6 {[%emt 0:00:18]} 14. Rxc3 {[%emt 0:01:48]} d6 {[%emt 0:00:08]} 15. Bd3 {[%emt 0:05:43]} Ba6 {[%emt 0:01:31]} 16. O-O {[%emt 0:02:38]} Rc8 {[%emt 0:00:34]} 17. Rd1 {[%emt 0:03:17]} Ne5 {[%emt 0:01:27]} 18. Nxe5 {[%emt 0:00:47]} fxe5 {[%emt 0:00:09]} 19. Be2 {[%emt 0:00:46]} Ke7 {[%emt 0:00:15]} 20. Rdc1 {[%emt 0:04:10]} Rc5 {[%emt 0:00:39]} 21. e4 {[%emt 0:00:33]} Rhc8 {[%emt 0:00:15]} 22. a4 {[%emt 0:00:10]} d5 {[%emt 0:00:39]} 23. exd5 {[%emt 0:05:11]} exd5 {[%emt 0:00:05]} 24. Kf1 {[%emt 0:00:35]} Bxc4 {[%emt 0:00:14]} 25. Bxc4 {[%emt 0:00:40]} Rxc4 {[%emt 0:00:03]} 26. Rxc4 {[%emt 0:00:16]} Rxc4 {[%emt 0:00:02]} 27. Ra1 {[%emt 0:00:01]} Rc5 {[%emt 0:01:12]} 28. Ke2 {[%emt 0:00:40]} Ra5 {[%emt 0:00:02]} 29. Kd3 {[%emt 0:02:41]} b5 $19 {[%emt 0:00:05] Kd4} 0-1

[Event "NOR-ch Youth 2019"]
[Site "Skien"]
[Date "2019.11.08"]
[Round "1.12"]
[White "Hammari, Vinjar"]
[Black "Unneland, Mathias"]
[Result "0-1"]
[ECO "C01"]
[WhiteElo "1358"]
[BlackElo "2029"]
[Annotator "NA RC"]
[PlyCount "52"]
[EventDate "2019.11.08"]
[EventType "swiss"]
[EventCountry "NOR"]
[SourceTitle "playchess.com"]
[Source "ChessBase"]
[SourceQuality "1"]
[TimeControl "2400+10"]

1. e4 {[%emt 0:00:00]} e6 {[%emt 0:00:00]} 2. d4 {[%emt 0:00:00]} d5 {[%emt 0:00:00]} 3. exd5 {[%emt 0:00:05]} exd5 {[%emt 0:00:00]} 4. Bd3 {[%emt 0:00:02]} Bd6 {[%emt 0:00:00]} 5. Nf3 {[%emt 0:00:03]} Nc6 {[%emt 0:00:00]} 6. O-O {[%emt 0:00:10]} Bg4 {[%emt 0:00:00]} 7. c3 {[%emt 0:00:02]} Nge7 {[%emt 0:00:01]} 8. Re1 {[%emt 0:00:11]} Qd7 {[%emt 0:00:02]} 9. Nbd2 {[%emt 0:00:27]} f6 {[%emt 0:00:46]} 10. Nf1 {[%emt 0:01:09]} O-O-O {[%emt 0:00:40] C01: French: Exchange Variation} 11. Ne3 {[%emt 0:01:30]} (11. b4 g5 12. a4 Ng6 13. a5 Nce7 14. Be2 Kb8 15. Qb3 Nh4 16. Nxh4 Bxe2 17. Rxe2 gxh4 18. a6 {0-1 (59) Dubiel,J (2434)-Balog,I (2559) Germany 2019}) 11... Bh5 {[%emt 0:01:43]} 12. h3 {[%emt 0:01:06]} g5 {[%emt 0:00:32]} 13. g4 $146 {[%emt 0:00:52]} ({Predecessor:} 13. Bf1 Bg6 14. b4 h5 15. Nh2 f5 16. Be2 {0-1 (34) Planche,P (1633)-O'Sullivan,T (1918) Villepinte 2013}) 13... Bg6 {[%emt 0:00:07]} 14. Bf1 {[%emt 0:01:10]} h5 {[%emt 0:01:12]} 15. b4 {[%emt 0:02:41]} Be4 {[%emt 0:01:19]} 16. Nd2 {[%emt 0:01:10] [#]} hxg4 $1 {[%emt 0:01:41]} 17. Nxe4 {[%emt 0:00:27]} dxe4 {[%emt 0:00:03]} 18. Qxg4 {[%emt 0:01:01] [#]} f5 $1 {[%emt 0:00:02]} 19. Qe2 {[%emt 0:00:44]} Ng6 {[%emt 0:00:54]} 20. Nc4 {[%emt 0:00:54]} Nh4 {[%emt 0:03:04]} 21. Bg2 {[%emt 0:04:01]} g4 {[%emt 0:01:56]} 22. Nxd6+ {[%emt 0:02:34]} Qxd6 {[%emt 0:00:12]} 23. Bg5 {[%emt 0:01:01]} Nf3+ {[%emt 0:00:51]} 24. Bxf3 {[%emt 0:00:01]} gxf3 {[%emt 0:00:01]} 25. Qe3 {[%emt 0:00:32]} Rdg8 {[%emt 0:00:01]} 26. Kf1 {[%emt 0:01:51]} Qh2 {[%emt 0:00:14]} 0-1

[Event "NOR-ch Youth 2019"]
[Site "Skien"]
[Date "2019.11.08"]
[Round "1.14"]
[White "Thorbjornsen, Ask Maardalen"]
[Black "Tunsjo, Axel"]
[Result "0-1"]
[ECO "B48"]
[WhiteElo "1340"]
[BlackElo "2038"]
[Annotator "NA RC"]
[PlyCount "44"]
[EventDate "2019.11.08"]
[EventType "swiss"]
[EventCountry "NOR"]
[SourceTitle "playchess.com"]
[Source "ChessBase"]
[SourceQuality "1"]
[TimeControl "2400+10"]

1. e4 {[%emt 0:00:00]} c5 {[%emt 0:00:00]} 2. Nc3 {[%emt 0:00:00]} Nc6 {[%emt 0:00:00]} 3. Nf3 {[%emt 0:00:21]} e6 {[%emt 0:00:01]} 4. d4 {[%emt 0:01:24]} cxd4 {[%emt 0:00:03]} 5. Nxd4 {[%emt 0:00:05]} Qc7 {[%emt 0:00:01]} 6. Be3 {[%emt 0:00:16]} a6 {[%emt 0:00:03]} 7. Be2 {[%emt 0:00:23]} Nf6 {[%emt 0:00:06]} 8. a3 {[%emt 0:00:43]} Be7 {[%emt 0:00:13]} 9. Qd2 {[%emt 0:00:47] B48: Sicilian: Taimanov: 5 Nc3 Qc7 6 Be3 a6 without Be2} (9. f4 d6 10. g4 d5 11. e5 Nd7 12. g5 Bc5 13. Qd2 Nxd4 14. Bxd4 Bxd4 15. Qxd4 Qb6 16. O-O-O Qxd4 17. Rxd4 {0-1 (62) Bologan,V (2610)-Jakovenko,D (2735) Poikovsky 2018}) 9... b5 {[%emt 0:00:12]} 10. b4 {[%emt 0:02:29]} Bb7 {[%emt 0:00:30]} 11. f3 {[%emt 0:00:38]} O-O {[%emt 0:00:07]} 12. O-O {[%emt 0:00:28]} Rac8 {[%emt 0:00:11]} 13. Bd3 $146 {[%emt 0:01:10]} ({Predecessor:} 13. Nd1 d5 14. exd5 Nxd5 15. Nxc6 Qxc6 16. Bd3 Rfd8 {1-0 (44) Kolozinskas,M-Svitojus,Z (1684) Plunge 2009}) 13... Nxd4 {[%emt 0:00:19]} 14. Bxd4 {[%emt 0:00:09]} e5 {[%emt 0:00:01]} 15. Ne2 {[%emt 0:11:22]} exd4 {[%emt 0:00:33]} 16. Nxd4 {[%emt 0:00:56]} Bd6 {[%emt 0:00:14]} 17. h3 {[%emt 0:00:42]} Be5 {[%emt 0:00:05]} 18. Nf5 {[%emt 0:01:04]} Bxa1 {[%emt 0:00:48]} 19. Ne7+ {[%emt 0:00:18]} Kh8 {[%emt 0:00:03]} 20. Nxc8 {[%emt 0:00:04]} Bd4+ {[%emt 0:00:03]} 21. Kh1 {[%emt 0:00:40]} Rxc8 {[%emt 0:00:05]} 22. Qc1 {[%emt 0:03:12]} Nh5 $19 {[%emt 0:00:28]} 0-1

[Event "NOR-ch Youth 2019"]
[Site "Skien"]
[Date "2019.11.08"]
[Round "1.15"]
[White "Eliseev, Sergey"]
[Black "Fjeldstad, Ask"]
[Result "1-0"]
[ECO "C42"]
[WhiteElo "1911"]
[BlackElo "1302"]
[Annotator "NA RC"]
[PlyCount "71"]
[EventDate "2019.11.08"]
[EventType "swiss"]
[EventCountry "NOR"]
[SourceTitle "playchess.com"]
[Source "ChessBase"]
[SourceQuality "1"]
[TimeControl "2400+10"]

1. e4 {[%emt 0:00:00]} e5 {[%emt 0:00:00]} 2. Nf3 {[%emt 0:00:00]} Nf6 {[%emt 0:00:00]} 3. Nxe5 {[%emt 0:00:02]} d6 {[%emt 0:00:00]} 4. Nf3 {[%emt 0:00:01]} Qe7 {[%emt 0:00:06]} 5. d3 {[%emt 0:01:49]} Bg4 {[%emt 0:00:37]} 6. Be2 {[%emt 0:01:37]} d5 {[%emt 0:01:10]} 7. e5 {[%emt 0:03:59]} Bxf3 {[%emt 0:01:52]} 8. exf6 {[%emt 0:00:10]} Qxe2+ {[%emt 0:00:25]} 9. Qxe2+ {[%emt 0:00:02]} Bxe2 {[%emt 0:00:02]} 10. fxg7 {[%emt 0:00:09]} Bxg7 {[%emt 0:00:03]} 11. Kxe2 {[%emt 0:00:02]} Nc6 {[%emt 0:00:13]} 12. c3 {[%emt 0:02:41]} O-O-O {[%emt 0:00:31]} 13. d4 {[%emt 0:01:14]} Rde8+ {[%emt 0:00:29]} 14. Kd3 {[%emt 0:00:46]} Re6 {[%emt 0:00:39]} 15. Be3 {[%emt 0:01:03]} Na5 {[%emt 0:01:28]} 16. Nd2 {[%emt 0:01:38]} b6 {[%emt 0:04:26]} 17. Rae1 {[%emt 0:07:37]} Rhe8 {[%emt 0:00:23]} 18. b4 {[%emt 0:02:09]} Nb7 {[%emt 0:02:38]} 19. f3 {[%emt 0:02:48]} ({White should play} 19. Nf3 $16) 19... Bh6 {[%emt 0:00:52]} 20. Bf2 {[%emt 0:00:07]} Rg8 {[%emt 0:01:46]} 21. g3 {[%emt 0:03:41]} Kd7 {[%emt 0:03:55]} 22. f4 {[%emt 0:01:51]} Rc8 {[%emt 0:00:50]} (22... Bg7 $16 {was worth a try.} 23. c4 Rxe1 24. Rxe1 a5) 23. Nf3 {[%emt 0:02:48]} (23. Re5 $18) 23... f6 $16 {[%emt 0:01:23]} 24. Rxe6 {[%emt 0:01:22]} Kxe6 {[%emt 0:00:08]} 25. Be3 {[%emt 0:00:24]} Kf7 {[%emt 0:00:17]} 26. Re1 {[%emt 0:02:13]} c5 {[%emt 0:00:43]} 27. bxc5 {[%emt 0:01:29]} bxc5 {[%emt 0:00:03]} 28. dxc5 {[%emt 0:01:00]} Nxc5+ {[%emt 0:00:29]} 29. Kc2 {[%emt 0:00:13]} Bg7 {[%emt 0:01:04]} 30. Bd4 {[%emt 0:00:19]} a6 {[%emt 0:01:05]} 31. Rb1 {[%emt 0:00:30]} Rc7 {[%emt 0:02:15]} 32. Bxc5 {[%emt 0:00:06]} Rxc5 {[%emt 0:00:02]} 33. Rb7+ {[%emt 0:00:00]} Kg8 {[%emt 0:00:12]} 34. Nd4 {[%emt 0:00:11]} f5 {[%emt 0:00:27]} 35. Rxg7+ {[%emt 0:00:03]} Kxg7 {[%emt 0:00:05]} 36. Ne6+ {[%emt 0:00:01]} 1-0

[Event "NOR-ch Youth 2019"]
[Site "Skien"]
[Date "2019.11.08"]
[Round "2.6"]
[White "Hestvik, Elias"]
[Black "Rosendahl, Guttorm"]
[Result "1-0"]
[ECO "D41"]
[WhiteElo "1784"]
[BlackElo "1436"]
[Annotator "NA RC"]
[PlyCount "81"]
[EventDate "2019.11.08"]
[EventType "swiss"]
[EventCountry "NOR"]
[SourceTitle "playchess.com"]
[Source "ChessBase"]
[SourceQuality "1"]
[TimeControl "2400+10"]

1. c4 {[%emt 0:00:00]} c5 {[%emt 0:00:02]} 2. Nc3 {[%emt 0:00:02]} Nf6 {[%emt 0:00:12]} 3. g3 {[%emt 0:00:38]} e6 {[%emt 0:00:53]} 4. Bg2 {[%emt 0:00:37]} d5 {[%emt 0:01:01]} 5. cxd5 {[%emt 0:01:30]} Nxd5 {[%emt 0:01:14]} 6. Nf3 {[%emt 0:00:51]} Nc6 {[%emt 0:00:50]} 7. d4 {[%emt 0:03:04]} cxd4 {[%emt 0:01:42]} 8. Nxd4 {[%emt 0:00:13]} Nxc3 {[%emt 0:00:13]} 9. bxc3 {[%emt 0:01:46]} Nxd4 {[%emt 0:01:27]} 10. Qxd4 {[%emt 0:00:29]} Qxd4 {[%emt 0:00:41]} 11. cxd4 {[%emt 0:00:02]} Bb4+ {[%emt 0:00:09]} 12. Bd2 {[%emt 0:00:23]} Bxd2+ {[%emt 0:00:03]} 13. Kxd2 {[%emt 0:00:02]} Rb8 {[%emt 0:00:21]} 14. Rhc1 {[%emt 0:00:57]} Kd7 {[%emt 0:09:03]} 15. Rc3 {[%emt 0:01:27]} Kd6 {[%emt 0:02:40]} 16. Rac1 {[%emt 0:00:53]} Bd7 {[%emt 0:01:01]} 17. Rc7 {[%emt 0:02:55]} Bc6 {[%emt 0:01:14]} 18. R7xc6+ {[%emt 0:03:59]} bxc6 {[%emt 0:00:12]} 19. Rxc6+ {[%emt 0:00:01]} Kd7 {[%emt 0:00:27]} 20. Ra6 {[%emt 0:00:02]} Rhc8 {[%emt 0:02:29]} 21. Rxa7+ {[%emt 0:00:32]} Rc7 {[%emt 0:00:02]} 22. Rxc7+ {[%emt 0:00:55]} Kxc7 {[%emt 0:00:04]} 23. Kc2 {[%emt 0:04:21]} Rb5 {[%emt 0:03:25]} 24. Be4 {[%emt 0:02:43]} Rb8 {[%emt 0:03:01]} 25. Kc3 {[%emt 0:03:25]} Rc8 {[%emt 0:01:19]} 26. a4 {[%emt 0:03:04]} Kb6+ {[%emt 0:00:56]} 27. Kb4 {[%emt 0:00:07]} Rb8 {[%emt 0:01:10]} 28. Bd3 {[%emt 0:03:42]} Ra8 {[%emt 0:03:57]} 29. Bb5 {[%emt 0:00:54]} Rc8 {[%emt 0:01:25]} 30. Bc4 {[%emt 0:01:12]} Ra8 {[%emt 0:01:37]} 31. e4 {[%emt 0:02:27]} Rc8 {[%emt 0:01:09]} 32. a5+ {[%emt 0:00:34]} Ka7 {[%emt 0:00:09]} 33. d5 {[%emt 0:00:39]} exd5 {[%emt 0:00:10]} 34. exd5 {[%emt 0:00:14]} f6 {[%emt 0:00:25]} 35. Bb5 {[%emt 0:00:35]} Rc1 {[%emt 0:00:28]} 36. d6 {[%emt 0:00:13]} Rb1+ {[%emt 0:00:33]} 37. Kc5 {[%emt 0:00:08]} Rc1+ {[%emt 0:00:10]} 38. Kd5 {[%emt 0:00:27]} Rd1+ {[%emt 0:00:04]} 39. Ke6 {[%emt 0:00:11]} Kb7 {[%emt 0:00:18]} 40. Kd7 {[%emt 0:00:10]} Rd5 {[%emt 0:00:07]} 41. Bc6+ {[%emt 0:00:01]} 1-0

[Event "NOR-ch Youth 2019"]
[Site "Skien"]
[Date "2019.11.08"]
[Round "2.12"]
[White "Unneland, Mathias"]
[Black "Elmi, Saad Abobaker"]
[Result "1-0"]
[ECO "D37"]
[WhiteElo "2029"]
[BlackElo "1612"]
[Annotator "NA RC"]
[PlyCount "125"]
[EventDate "2019.11.08"]
[EventType "swiss"]
[EventCountry "NOR"]
[SourceTitle "playchess.com"]
[Source "ChessBase"]
[SourceQuality "1"]
[TimeControl "2400+10"]

{[%evp 13,105,53,36,13,50,32767,32767,32767,32767,32767,32767,72,87,30,44,35,51,42,32767,43,132,93,245,203,193,209,209,-330,297,28,320,332,651,-108,1919,5768,29995,251,669,310,32767,32767,725,715,675,817,831,32767,32767,32767,32767,32767,32767,783,820,882,925,1027,1246,32767,931,985,905,32767,901,1069,1105,1193,1185,2050,32767,32767,32767,32767,1206,1255,32767,2943,5265,29976,29982,29987,29991,29992,32767,32767,32767,32767,32767,32767,32767,32767,29994,29990]} 1. d4 {[%emt 0:00:00]} Nf6 {[%emt 0:00:00]} 2. c4 {[%emt 0:00:00]} e6 {[%emt 0:00:00]} 3. Nf3 {[%emt 0:00:00]} d5 {[%emt 0:00:00]} 4. Nc3 {[%emt 0:00:00]} Be7 {[%emt 0:00:00]} 5. Bf4 {[%emt 0:00:00]} O-O {[%emt 0:00:05]} 6. e3 {[%emt 0:00:00]} a6 {[%emt 0:00:12]} 7. Rc1 {[%emt 0:00:21]} dxc4 {[%emt 0:00:16]} 8. Bxc4 {[%emt 0:00:03]} c5 {[%emt 0:00:02] D37: Queen's Gambit Declined: 5 Bf4} (8... b5 9. Bd3 Bb7 10. Qc2 Nbd7 11. Ng5 h6 12. Nh7 Re8 13. Nxf6+ Bxf6 14. Bh7+ Kh8 15. Be4 Bxe4 16. Nxe4 {½-½ (64) Svane,R (2526)-Kovalenko,I (2644) Gjakova 2016}) 9. dxc5 {[%emt 0:01:29]} Bxc5 {[%emt 0:00:31]} 10. O-O {[%emt 0:00:21]} Nc6 {[%emt 0:00:17]} 11. Qe2 $146 {[%emt 0:01:36]} ({Predecessor:} 11. Qc2 h6 12. a3 Qe7 13. Na4 Bd6 14. Nb6 Rb8 15. Bxd6 Qxd6 16. Rfd1 {½-½ (40) Soeder,T (2024)-Schwarzmann,T (1905) Bayern 2015}) 11... b5 {[%emt 0:00:21]} 12. Rfd1 {[%emt 0:08:57]} Qb6 $1 {[%emt 0:00:35]} 13. Bd3 {[%emt 0:00:01]} Bb7 {[%emt 0:00:16]} 14. Ne4 {[%emt 0:00:28]} Be7 $1 {[%emt 0:00:15]} 15. Nfg5 {[%emt 0:01:17]} Nxe4 {[%emt 0:00:37]} 16. Bxe4 {[%emt 0:00:54]} h6 {[%emt 0:00:58]} (16... Bxg5 $1 $14 17. Bxg5 Ne5) 17. Qh5 {[%emt 0:06:28]} e5 $2 {[%emt 0:01:38] [#]} (17... Rad8 $16 {was necessary.}) 18. Nxf7 $1 {[%emt 0:03:13]} Rxf7 {[%emt 0:01:44] [#]} 19. Qg6 $1 {[%emt 0:01:13]} Bf6 {[%emt 0:00:47] [#]} ({Much worse is} 19... Rf6 $6 20. Qh7+ Kf7 21. Bd5+ Ke8 22. Bf3 $16) 20. Bxh6 $4 {[%emt 0:02:36]} (20. Rd6 $1 $18 {is the narrow road to win.} Rd8 21. Bd5 {[%mdl 64] Pin}) 20... Nb4 $4 {[%emt 0:02:07]} (20... Ne7 $19 21. Qg4 (21. Qh7+ $2 Kf8 $19) 21... Bxe4 22. Qxe4 Raf8) 21. Qh7+ {[%emt 0:00:44]} Kf8 {[%emt 0:00:07]} 22. Bg6 {[%emt 0:01:01]} Rc7 $2 {[%emt 0:00:36]} (22... Rd8) 23. a3 $2 {[%emt 0:05:14]} (23. Rxc7 $18 Qxc7 {[#]} 24. Bg5 $1 {[%mdl 512]}) 23... Nc6 $2 {[%emt 0:01:41] [#]} (23... Nd5 $17 24. Qh8+ Ke7) 24. Rd6 $1 {[%emt 0:01:06]} Ne7 {[%emt 0:16:30]} 25. Rxf6+ $2 {[%emt 0:02:34]} (25. Rxb6 $2 {leads to mate.} Rxc1#) (25. Qh8+ {mates} Ng8 26. Rxc7 (26. Rxb6 $2 {gets mated.} Rxc1#) 26... Qxc7 27. Rxf6+ Ke7 28. Qxg7+ Kd8 29. Rf8#) 25... Qxf6 {[%emt 0:00:09]} 26. Qh8+ {[%emt 0:00:02]} ({Less strong is} 26. Rxc7 Bd5 $18) 26... Ng8 {[%emt 0:01:04]} 27. Rxc7 {[%emt 0:00:08]} gxh6 {[%emt 0:01:18]} 28. Rf7+ {[%emt 0:00:06]} ({Worse is} 28. Rxb7 Qxg6 29. h3 Qf6 $11) 28... Qxf7 {[%emt 0:00:22]} 29. Bxf7 {[%emt 0:00:02]} Rd8 {[%emt 0:00:07]} 30. h3 {[%emt 0:01:26]} Kxf7 {[%emt 0:00:01]} 31. Qh7+ {[%emt 0:00:02]} Kf6 {[%emt 0:00:03]} 32. Qxb7 {[%emt 0:00:04]} Rd6 {[%emt 0:00:02]} 33. Qh7 {[%emt 0:00:11]} Rd8 {[%emt 0:00:20]} 34. e4 {[%emt 0:00:37]} Ne7 {[%emt 0:00:08]} 35. Qxh6+ {[%emt 0:00:03]} Ng6 {[%emt 0:00:02]} 36. Qh5 {[%emt 0:00:11]} Rh8 {[%emt 0:00:40]} 37. Qf5+ {[%emt 0:00:03]} Kg7 {[%emt 0:00:01]} 38. Qd7+ {[%emt 0:00:22]} Kh6 {[%emt 0:00:09]} 39. g3 {[%emt 0:00:13]} Rb8 {[%emt 0:00:41]} 40. h4 {[%emt 0:00:13]} Rb6 {[%emt 0:00:08]} 41. Qd8 {[%emt 0:00:15]} Re6 {[%emt 0:00:35]} 42. Qg5+ {[%emt 0:00:03]} Kh7 {[%emt 0:00:02]} 43. h5 {[%emt 0:00:01]} Nf8 {[%emt 0:00:05]} 44. Qf5+ {[%emt 0:00:48]} Kg7 {[%emt 0:00:08]} 45. g4 {[%emt 0:00:13]} Rf6 {[%emt 0:00:15]} 46. Qxe5 {[%emt 0:00:04]} Nd7 {[%emt 0:00:01] [#]} 47. Qd4 $1 {[%emt 0:00:01]} Kh6 {[%emt 0:01:55]} 48. Qxd7 {[%emt 0:00:07]} Rf4 {[%emt 0:00:15]} 49. Qd2 {[%emt 0:00:04]} Kg5 {[%emt 0:00:02]} 50. h6 {[%emt 0:00:07]} Kxg4 {[%emt 0:00:08]} 51. h7 {[%emt 0:00:04]} Rf8 {[%emt 0:00:02]} 52. Qd7+ {[%emt 0:00:04]} Kh5 {[%emt 0:00:05]} 53. Qh3+ {[%emt 0:00:07]} Kg6 {[%emt 0:00:03]} 54. h8=Q {[%emt 0:00:04]} Rxh8 {[%emt 0:00:02]} 55. Qxh8 {[%emt 0:00:03]} Kf7 {[%emt 0:00:10]} 56. f4 {[%emt 0:00:02]} Ke6 {[%emt 0:00:01]} 57. Qh6+ {[%emt 0:00:02]} Kf7 {[%emt 0:00:01]} 58. f5 {[%emt 0:00:01]} Ke7 {[%emt 0:00:01]} 59. Qe6+ {[%emt 0:00:02]} Kf8 {[%emt 0:00:01]} 60. Qd7 {[%emt 0:00:01]} a5 {[%emt 0:00:10]} 61. f6 {[%emt 0:00:01]} b4 {[%emt 0:00:01]} 62. Qe7+ {[%emt 0:00:01]} Kg8 {[%emt 0:00:01]} 63. Qg7# {[%emt 0:00:02]} 1-0